[Event "FRA-chTW Top 12 2019"]
[Site "Vandoeuvre"]
[Date "2019.05.04"]
[Round "4.5"]
[White "Gaponenko, Inna"]
[Black "Bulmaga, Irina"]
[Result "1/2-1/2"]
[ECO "B90"]
[WhiteElo "2445"]
[BlackElo "2429"]
[Annotator "RC"]
[PlyCount "173"]
[EventDate "2019.05.02"]
[EventType "team-tourn"]
[EventCountry "FRA"]
[SourceTitle "playchess.com"]
[Source "ChessBase"]
[SourceQuality "1"]
[TimeControl "40/5400+30:1800+30"]

1. e4 {[%emt 0:00:00]} c5 {[%emt 0:00:00]} 2. Nf3 {[%emt 0:00:00]} d6 {[%emt 0:00:00]} 3. d4 {[%emt 0:00:00]} cxd4 {[%emt 0:00:00]} 4. Nxd4 {[%emt 0:00:00]} Nf6 {[%emt 0:00:00]} 5. Nc3 {[%emt 0:00:00]} a6 {[%emt 0:00:04]} 6. Be3 {[%emt 0:00:00]} e5 {[%emt 0:00:07]} 7. Nf3 {[%emt 0:00:05]} Be7 {[%emt 0:00:18]} 8. Bc4 {[%emt 0:00:07]} O-O {[%emt 0:00:16]} 9. O-O {[%emt 0:00:08]} Nc6 {[%emt 0:00:12]} 10. Qe2 {[%emt 0:18:52]} Be6 {[%emt 0:00:26]} 11. Bb3 {[%emt 0:01:59]} Qc7 {[%emt 0:00:34]} 12. Rfd1 {[%emt 0:12:36]} Rac8 {[%emt 0:00:37]} 13. Bg5 {[%emt 0:18:40]} Na5 {[%emt 0:00:35]} 14. Bxf6 {[%emt 0:21:53]} Bxf6 {[%emt 0:00:16]} 15. Nd5 {[%emt 0:00:09]} Bxd5 {[%emt 0:00:53]} 16. Rxd5 {[%emt 0:09:05]} Nxb3 {[%emt 0:00:58]} 17. cxb3 {[%emt 0:00:02]} Be7 {[%emt 0:09:23]} 18. Rd3 {[%emt 0:00:02]} Qa5 {[%emt 0:05:04]} 19. Qe1 {[%emt 0:05:21]} Qxe1+ {[%emt 0:01:22]} 20. Nxe1 {[%emt 0:00:25]} g6 {[%emt 0:08:53]} 21. Rc3 {[%emt 0:05:55]} f5 {[%emt 0:02:30]} 22. Rac1 {[%emt 0:03:49]} Rxc3 {[%emt 0:00:57]} 23. Rxc3 {[%emt 0:00:18]} Bd8 {[%emt 0:08:12]} 24. Rd3 {[%emt 0:01:43]} Bc7 {[%emt 0:08:08]} 25. exf5 {[%emt 0:00:03]} gxf5 {[%emt 0:00:24]} 26. Nc2 {[%emt 0:00:01]} Kf7 {[%emt 0:01:15]} 27. Rh3 {[%emt 0:01:31]} Kg6 {[%emt 0:04:04]} 28. Rg3+ {[%emt 0:00:09]} Kf6 {[%emt 0:00:42]} 29. Rh3 {[%emt 0:00:02]} Rf7 {[%emt 0:01:32]} 30. Ne3 {[%emt 0:00:38]} Ke6 {[%emt 0:03:53]} 31. Rh6+ {[%emt 0:00:09]} Kd7 {[%emt 0:00:10]} 32. Kf1 {[%emt 0:01:21]} Kc6 {[%emt 0:01:21]} 33. Ke2 {[%emt 0:00:32]} Kc5 {[%emt 0:04:01]} 34. Rh5 {[%emt 0:00:44]} f4 {[%emt 0:00:28]} 35. Nc4 {[%emt 0:00:17]} b5 {[%emt 0:08:55]} 36. Nd2 {[%emt 0:00:02]} d5 {[%emt 0:05:20]} 37. g3 {[%emt 0:00:01]} fxg3 {[%emt 0:06:00]} 38. hxg3 {[%emt 0:00:01]} Kc6 {[%emt 0:03:35]} 39. Nf3 {[%emt 0:00:48]} Re7 {[%emt 0:01:31]} 40. Ng5 {[%emt 0:00:08]} e4 {[%emt 0:00:58]} 41. Rxh7 {[%emt 0:30:32]} Rxh7 {[%emt 0:31:13]} 42. Nxh7 {[%emt 0:00:02]} Kd6 {[%emt 0:01:11]} 43. Nf6 {[%emt 0:01:50]} Bd8 {[%emt 0:01:44]} 44. Ng4 {[%emt 0:00:12]} d4 {[%emt 0:00:16]} 45. f3 {[%emt 0:00:24]} d3+ {[%emt 0:01:13]} 46. Ke3 {[%emt 0:00:33]} Bb6+ {[%emt 0:00:41]} 47. Kd2 {[%emt 0:00:05]} Ba5+ {[%emt 0:00:51]} 48. Kd1 {[%emt 0:00:38]} exf3 {[%emt 0:00:22]} 49. Nf2 {[%emt 0:01:38]} Kd5 {[%emt 0:01:59]} 50. Nxd3 {[%emt 0:00:03]} Kd4 {[%emt 0:00:24]} 51. Nf2 {[%emt 0:01:15]} Bc7 {[%emt 0:00:31]} 52. Nh1 {[%emt 0:00:26]} Ke3 {[%emt 0:04:30]} 53. Ke1 {[%emt 0:00:03]} Be5 {[%emt 0:00:30]} 54. Kf1 {[%emt 0:00:36]} Bxb2 {[%emt 0:00:02]} 55. Nf2 {[%emt 0:00:10]} Bd4 {[%emt 0:00:12]} 56. g4 {[%emt 0:00:58]} Kf4 {[%emt 0:00:39]} 57. Nd3+ {[%emt 0:00:15]} Kxg4 {[%emt 0:00:21]} 58. Nb4 {[%emt 0:00:13]} a5 {[%emt 0:00:40]} 59. Nc6 {[%emt 0:00:01]} Bb6 {[%emt 0:00:39]} 60. b4 {[%emt 0:01:00]} a4 {[%emt 0:00:43]} 61. Ne7 {[%emt 0:00:01]} Bd4 {[%emt 0:03:08]} 62. Nc6 {[%emt 0:00:14]} Bc3 {[%emt 0:01:20]} 63. Na7 {[%emt 0:00:18]} Bxb4 {[%emt 0:00:10]} 64. Nxb5 {[%emt 0:00:07]} a3 {[%emt 0:00:05]} 65. Nd4 {[%emt 0:02:29]} Kf4 {[%emt 0:00:30]} 66. Nc2 {[%emt 0:00:22]} Bd6 {[%emt 0:01:23]} 67. Kf2 {[%emt 0:00:48]} Bc5+ {[%emt 0:00:35]} 68. Kf1 {[%emt 0:00:01]} Ke4 {[%emt 0:00:14]} 69. Ne1 {[%emt 0:00:05]} Bb4 {[%emt 0:01:31]} 70. Nc2 {[%emt 0:00:04]} Bd6 {[%emt 0:02:15]} 71. Kf2 {[%emt 0:00:32]} Bc5+ {[%emt 0:00:39]} 72. Kf1 {[%emt 0:00:02]} Kf4 {[%emt 0:00:17]} 73. Ne1 {[%emt 0:00:11]} Kg3 {[%emt 0:00:31]} 74. Nd3 {[%emt 0:00:58]} Be3 {[%emt 0:00:45]} 75. Ne1 {[%emt 0:00:58]} f2 {[%emt 0:00:56]} 76. Nd3 {[%emt 0:00:21]} Bd4 {[%emt 0:00:21]} 77. Nb4 {[%emt 0:01:25]} Bc3 {[%emt 0:00:37]} 78. Nd3 {[%emt 0:00:25]} Bd4 {[%emt 0:00:34]} 79. Nb4 {[%emt 0:00:01]} Bc5 {[%emt 0:00:17]} 80. Nc2 {[%emt 0:00:04]} Bd6 {[%emt 0:00:24]} 81. Nd4 {[%emt 0:00:13]} Be5 {[%emt 0:00:29]} 82. Ne2+ {[%emt 0:00:24]} Kf3 {[%emt 0:00:07]} 83. Nd4+ {[%emt 0:00:04]} Ke4 {[%emt 0:01:03]} 84. Nc2 {[%emt 0:00:11]} Kd3 {[%emt 0:00:19]} 85. Nxa3 {[%emt 0:00:16]} Bg3 {[%emt 0:00:15]} 86. Nb5 {[%emt 0:00:24]} Kc4 {[%emt 0:00:02]} 87. Nd6+ {[%emt 0:00:10]} 1/2-1/2

[Event "FRA-chTW Top 12 2019"]
[Site "Vandoeuvre"]
[Date "2019.05.04"]
[Round "4.6"]
[White "L'Ami, Alina"]
[Black "Frisk, Ellinor"]
[Result "1/2-1/2"]
[ECO "D19"]
[WhiteElo "2286"]
[BlackElo "2262"]
[Annotator "NA"]
[PlyCount "75"]
[EventDate "2019.05.02"]
[EventType "team-tourn"]
[EventCountry "FRA"]
[SourceTitle "playchess.com"]
[Source "ChessBase"]
[SourceQuality "1"]
[TimeControl "40/5400+30:1800+30"]

1. d4 {[%emt 0:00:00]} d5 {[%emt 0:00:00]} 2. c4 {[%emt 0:00:00]} c6 {[%emt 0:00:00]} 3. Nf3 {[%emt 0:00:00]} Nf6 {[%emt 0:00:00]} 4. Nc3 {[%emt 0:00:05]} dxc4 {[%emt 0:00:00]} 5. a4 {[%emt 0:00:11]} Bf5 {[%emt 0:00:00]} 6. e3 {[%emt 0:00:06]} e6 {[%emt 0:00:00]} 7. Bxc4 {[%emt 0:00:06]} Bb4 {[%emt 0:00:05]} 8. O-O {[%emt 0:00:07]} O-O {[%emt 0:00:07]} 9. Qe2 {[%emt 0:00:09]} Bg4 {[%emt 0:00:09]} 10. h3 {[%emt 0:03:14]} Bh5 {[%emt 0:00:04]} 11. g4 {[%emt 0:11:24]} Bg6 {[%emt 0:00:16]} 12. Ne5 {[%emt 0:00:16]} Nbd7 {[%emt 0:01:58]} 13. Nxg6 {[%emt 0:10:20]} hxg6 {[%emt 0:00:09]} 14. Rd1 {[%emt 0:01:31]} Qe7 {[%emt 0:01:13]} 15. a5 {[%emt 0:10:16]} e5 {[%emt 0:05:34]} 16. Qc2 {[%emt 0:10:31]} Kh8 {[%emt 0:14:59]} 17. d5 {[%emt 0:07:18]} cxd5 {[%emt 0:05:38]} 18. Nxd5 {[%emt 0:01:09]} Nxd5 {[%emt 0:00:31]} 19. Bxd5 {[%emt 0:00:02]} Nf6 {[%emt 0:04:12]} 20. Bg2 {[%emt 0:03:18]} Rac8 {[%emt 0:02:34]} 21. Qe2 {[%emt 0:02:01]} Rfd8 {[%emt 0:03:45]} 22. Bd2 {[%emt 0:01:08]} Bxd2 {[%emt 0:02:42]} 23. Rxd2 {[%emt 0:00:02]} Qb4 {[%emt 0:06:23]} 24. Rad1 {[%emt 0:04:41]} Qxa5 {[%emt 0:02:53]} 25. Bxb7 {[%emt 0:00:49]} Rxd2 {[%emt 0:00:53]} 26. Qxd2 {[%emt 0:03:13]} Qxd2 {[%emt 0:00:22]} 27. Rxd2 {[%emt 0:00:01]} Rc7 {[%emt 0:01:13]} 28. Bg2 {[%emt 0:02:27]} g5 {[%emt 0:01:15]} 29. Kf1 {[%emt 0:01:23]} Rc8 {[%emt 0:13:00]} 30. Ke2 {[%emt 0:04:11]} Kg8 {[%emt 0:00:05]} 31. Kd1 {[%emt 0:00:16]} Kf8 {[%emt 0:00:26]} 32. Rd6 {[%emt 0:03:29]} Ke7 {[%emt 0:01:26]} 33. Ra6 {[%emt 0:00:03]} Rc7 {[%emt 0:00:20]} 34. b4 {[%emt 0:02:25]} Nd7 {[%emt 0:05:45]} 35. b5 {[%emt 0:01:08]} Nb6 {[%emt 0:02:04]} 36. Bc6 {[%emt 0:00:42]} Kd6 {[%emt 0:01:06]} 37. Ra2 {[%emt 0:02:44]} f6 {[%emt 0:00:20]} 38. Ke2 {[%emt 0:01:38]} 1/2-1/2

[Event "FRA-chTW Top 12 2019"]
[Site "Vandoeuvre"]
[Date "2019.05.04"]
[Round "4.7"]
[White "Haussernot, Cecile"]
[Black "Afraoui, Anaelle"]
[Result "0-1"]
[ECO "B51"]
[WhiteElo "2097"]
[BlackElo "2068"]
[Annotator "NA"]
[PlyCount "70"]
[EventDate "2019.05.02"]
[EventType "team-tourn"]
[EventCountry "FRA"]
[SourceTitle "playchess.com"]
[Source "ChessBase"]
[SourceQuality "1"]
[TimeControl "40/5400+30:1800+30"]

1. e4 {[%emt 0:00:00]} c5 {[%emt 0:00:00]} 2. Nf3 {[%emt 0:00:00]} Nc6 {[%emt 0:00:00]} 3. Nc3 {[%emt 0:00:00]} d6 {[%emt 0:00:00]} 4. Bb5 {[%emt 0:00:00]} e5 {[%emt 0:00:34]} 5. O-O {[%emt 0:00:43]} Nf6 {[%emt 0:01:40]} 6. Nd5 {[%emt 0:03:09]} Be7 {[%emt 0:12:52]} 7. b4 {[%emt 0:07:42]} cxb4 {[%emt 0:08:53]} 8. d4 {[%emt 0:07:27]} O-O {[%emt 0:03:32]} 9. Bxc6 {[%emt 0:01:00]} bxc6 {[%emt 0:00:11]} 10. Nxb4 {[%emt 0:00:18]} Qb6 {[%emt 0:03:17]} 11. Nd3 {[%emt 0:18:39]} exd4 {[%emt 0:03:49]} 12. Bg5 {[%emt 0:00:16]} c5 {[%emt 0:03:47]} 13. Nf4 {[%emt 0:02:04]} Bb7 {[%emt 0:03:24]} 14. Nd2 {[%emt 0:01:22]} Rae8 {[%emt 0:14:13]} 15. Rb1 {[%emt 0:01:37]} Qc7 {[%emt 0:00:55]} 16. Re1 {[%emt 0:09:52]} Bc6 {[%emt 0:10:31]} 17. Bxf6 {[%emt 0:09:13]} Bxf6 {[%emt 0:00:19]} 18. Nh5 {[%emt 0:00:06]} Qe7 {[%emt 0:02:46]} 19. f4 {[%emt 0:00:36]} g6 {[%emt 0:04:20]} 20. Ng3 {[%emt 0:02:13]} Qd7 {[%emt 0:05:32]} 21. Qf3 {[%emt 0:03:05]} Kh8 {[%emt 0:04:38]} 22. Re2 {[%emt 0:01:46]} Qd8 {[%emt 0:02:29]} 23. Qd3 {[%emt 0:01:19]} Bg7 {[%emt 0:01:22]} 24. Qa6 {[%emt 0:01:46]} Qd7 {[%emt 0:00:26]} 25. f5 {[%emt 0:02:05]} Rb8 {[%emt 0:01:23]} 26. Ree1 {[%emt 0:01:44]} Rxb1 {[%emt 0:02:43]} 27. Rxb1 {[%emt 0:00:07]} d5 {[%emt 0:00:08]} 28. Qa5 {[%emt 0:03:54]} dxe4 {[%emt 0:01:07]} 29. Ndxe4 {[%emt 0:01:28]} gxf5 {[%emt 0:00:46]} 30. Ng5 {[%emt 0:00:59]} f4 {[%emt 0:00:44]} 31. N3e4 {[%emt 0:00:23]} h6 {[%emt 0:01:33]} 32. Nxc5 {[%emt 0:00:18]} Qg4 {[%emt 0:00:41]} 33. Nge4 {[%emt 0:00:28]} f3 {[%emt 0:00:54]} 34. Ng3 {[%emt 0:00:13]} d3 {[%emt 0:02:12]} 35. c3 {[%emt 0:01:45]} Bd4+ {[%emt 0:00:35]} 0-1

[Event "FRA-chTW Top 12 2019"]
[Site "Vandoeuvre"]
[Date "2019.05.04"]
[Round "4.7"]
[White "Flear, Christine"]
[Black "Verot, Melanie"]
[Result "*"]
[ECO "D91"]
[WhiteElo "2037"]
[BlackElo "2069"]
[Annotator "NA RC"]
[PlyCount "86"]
[EventDate "2019.05.02"]
[EventType "team-tourn"]
[EventCountry "FRA"]
[SourceTitle "playchess.com"]
[Source "ChessBase"]
[SourceQuality "1"]
[TimeControl "40/5400+30:1800+30"]

1. d4 {[%emt 0:00:00]} Nf6 {[%emt 0:00:00]} 2. c4 {[%emt 0:00:12]} g6 {[%emt 0:00:00]} 3. Nc3 {[%emt 0:00:08]} d5 {[%emt 0:00:00]} 4. Nf3 {[%emt 0:04:24]} Bg7 {[%emt 0:00:50]} 5. Bg5 {[%emt 0:01:00]} c6 {[%emt 0:02:27]} 6. e3 {[%emt 1:27:16]} O-O {[%emt 1:29:43]} 7. Be2 {[%emt 1:25:49]} Be6 {[%emt 0:22:36]} 8. Qb3 {[%emt 0:14:45]} Nbd7 {[%emt 0:07:06]} 9. cxd5 {[%emt 0:08:58]} Nxd5 {[%emt 0:11:10]} 10. Qa3 {[%emt 0:08:09]} N7f6 {[%emt 0:04:02]} 11. O-O {[%emt 0:01:32]} Re8 {[%emt 0:03:59]} 12. Bh4 {[%emt 0:13:35]} a5 {[%emt 0:07:50]} 13. Nxd5 {[%emt 0:07:13]} Bxd5 {[%emt 0:02:58]} 14. Qc5 {[%emt 0:08:30]} Ne4 {[%emt 0:04:06]} 15. Qc2 {[%emt 0:00:06]} Nd6 {[%emt 0:06:41]} 16. Nd2 {[%emt 0:02:03]} a4 {[%emt 0:02:58]} 17. f3 {[%emt 0:01:40]} Qa5 {[%emt 0:01:43]} 18. Bf2 {[%emt 0:00:52]} e5 {[%emt 0:01:03]} 19. dxe5 {[%emt 0:03:12]} Bxe5 {[%emt 0:00:13]} 20. Nc4 {[%emt 0:02:08]} Nxc4 {[%emt 0:02:04]} 21. Bxc4 {[%emt 0:00:01]} a3 {[%emt 0:00:45]} 22. b4 {[%emt 0:04:34]} Qxb4 {[%emt 0:02:05]} 23. Bxd5 {[%emt 0:00:15]} Bxa1 {[%emt 0:00:53]} 24. Bxf7+ {[%emt 0:01:13]} Kxf7 {[%emt 0:00:06]} 25. Rxa1 {[%emt 0:00:03]} Rad8 {[%emt 0:01:32]} 26. Rb1 {[%emt 0:00:17]} Rd2 {[%emt 0:00:44]} 27. Qc1 {[%emt 0:01:48]} Rb2 {[%emt 0:00:34]} 28. Ra1 {[%emt 0:00:14]} Qd2 {[%emt 0:01:00]} 29. Qc4+ {[%emt 0:00:24]} Kg7 {[%emt 0:01:34]} 30. Rf1 {[%emt 0:01:05]} Rd8 {[%emt 0:02:57]} 31. e4 {[%emt 0:00:32]} Qd6 {[%emt 0:01:46]} 32. Qc3+ {[%emt 0:01:54]} Kf7 {[%emt 0:01:10]} 33. f4 {[%emt 0:00:48]} Rxf2 {[%emt 0:01:54]} 34. Rxf2 {[%emt 0:01:46]} Qd1+ {[%emt 0:00:07]} 35. Rf1 {[%emt 0:00:05]} Qd4+ {[%emt 0:00:03]} 36. Qxd4 {[%emt 0:00:39]} Rxd4 {[%emt 0:00:04]} 37. e5 {[%emt 0:00:32]} Rd2 {[%emt 0:00:48]} 38. Ra1 {[%emt 0:00:01]} Ke6 {[%emt 0:00:49]} 39. h3 {[%emt 0:01:55]} c5 {[%emt 0:00:30]} 40. Kh2 {[%emt 0:00:00]} c4 {[%emt 0:00:09]} 41. Rb1 {[%emt 0:30:20]} Rb2 {[%emt 0:30:26]} 42. Rd1 {[%emt 0:00:25]} Rxa2 {[%emt 0:00:19]} 43. Rd6+ {[%emt 0:00:07]} Ke7 {[%emt 0:00:08]} *

[Event "FRA-chTW Top 12 2019"]
[Site "Vandoeuvre"]
[Date "2019.05.04"]
[Round "4.8"]
[White "Bonvalot, Isabelle"]
[Black "Richard, Emma"]
[Result "1-0"]
[ECO "B22"]
[WhiteElo "1936"]
[BlackElo "2120"]
[Annotator "NA"]
[PlyCount "83"]
[EventDate "2019.05.02"]
[EventType "team-tourn"]
[EventCountry "FRA"]
[SourceTitle "playchess.com"]
[Source "ChessBase"]
[SourceQuality "1"]
[TimeControl "40/5400+30:1800+30"]

1. e4 {[%emt 0:00:00]} c5 {[%emt 0:00:00]} 2. c3 {[%emt 0:00:00]} Nf6 {[%emt 0:00:00]} 3. e5 {[%emt 0:00:00]} Nd5 {[%emt 0:00:02]} 4. d4 {[%emt 0:00:00]} Nc6 {[%emt 0:00:31]} 5. Nf3 {[%emt 0:02:36]} cxd4 {[%emt 0:00:30]} 6. cxd4 {[%emt 0:00:19]} d6 {[%emt 0:00:16]} 7. Bc4 {[%emt 0:02:24]} Nb6 {[%emt 0:01:12]} 8. Bb5 {[%emt 0:00:20]} d5 {[%emt 0:09:58]} 9. O-O {[%emt 0:03:18]} Bg4 {[%emt 0:01:32]} 10. h3 {[%emt 0:00:30]} Bxf3 {[%emt 0:03:22]} 11. Qxf3 {[%emt 0:00:03]} e6 {[%emt 0:03:03]} 12. Nc3 {[%emt 0:05:07]} a6 {[%emt 0:00:54]} 13. Bxc6+ {[%emt 0:00:21]} bxc6 {[%emt 0:00:06]} 14. Qg3 {[%emt 0:02:00]} Qc7 {[%emt 0:04:40]} 15. Ne2 {[%emt 0:09:41]} g6 {[%emt 0:15:13]} 16. Bg5 {[%emt 0:02:34]} Nd7 {[%emt 0:12:04]} 17. Rac1 {[%emt 0:05:16]} Bg7 {[%emt 0:01:41]} 18. Bd2 {[%emt 0:05:38]} O-O {[%emt 0:15:35]} 19. Bb4 {[%emt 0:02:17]} Rfc8 {[%emt 0:00:13]} 20. Rc2 {[%emt 0:16:40]} Qb7 {[%emt 0:08:42]} 21. Bd6 {[%emt 0:07:39]} a5 {[%emt 0:00:43]} 22. Nf4 {[%emt 0:01:04]} Nb6 {[%emt 0:11:34]} 23. h4 {[%emt 0:05:34]} a4 {[%emt 0:03:26]} 24. h5 {[%emt 0:02:32]} Ra5 {[%emt 0:01:25]} 25. Qh3 {[%emt 0:04:49]} Nc4 {[%emt 0:02:09]} 26. hxg6 {[%emt 0:08:41]} hxg6 {[%emt 0:00:15]} 27. Nxe6 {[%emt 0:01:28]} Nxd6 {[%emt 0:02:01]} 28. exd6 {[%emt 0:06:11]} fxe6 {[%emt 0:00:31]} 29. Qxe6+ {[%emt 0:00:05]} Kh7 {[%emt 0:00:18]} 30. Rc3 {[%emt 0:01:02]} Rf8 {[%emt 0:01:50]} 31. d7 {[%emt 0:01:59]} Qc7 {[%emt 0:01:03]} 32. Rxc6 {[%emt 0:00:29]} Qd8 {[%emt 0:00:16]} 33. Qxg6+ {[%emt 0:00:34]} Kh8 {[%emt 0:00:25]} 34. Qh5+ {[%emt 0:00:16]} Kg8 {[%emt 0:00:06]} 35. Qg4 {[%emt 0:00:41]} Ra7 {[%emt 0:00:36]} 36. Qe6+ {[%emt 0:01:34]} Kh8 {[%emt 0:00:04]} 37. Rc3 {[%emt 0:00:29]} Rxd7 {[%emt 0:00:56]} 38. Rh3+ {[%emt 0:00:08]} Bh6 {[%emt 0:00:04]} 39. Qxh6+ {[%emt 0:00:37]} Kg8 {[%emt 0:00:03]} 40. Rg3+ {[%emt 0:00:46]} Kf7 {[%emt 0:00:14]} 41. Qg6+ {[%emt 0:30:17]} Ke7 {[%emt 0:30:10]} 42. Re3# {[%emt 0:00:08]} 1-0

[Event "FRA-chTW Top 12 2019"]
[Site "Vandoeuvre"]
[Date "2019.05.04"]
[Round "4.9"]
[White "Cornette, Deimante"]
[Black "Le Du, Anaelle"]
[Result "1-0"]
[ECO "C41"]
[WhiteElo "2433"]
[BlackElo "1728"]
[Annotator "NA"]
[PlyCount "39"]
[EventDate "2019.05.02"]
[EventType "team-tourn"]
[EventCountry "FRA"]
[SourceTitle "playchess.com"]
[Source "ChessBase"]
[SourceQuality "1"]
[TimeControl "40/5400+30:1800+30"]

1. e4 {[%emt 0:00:00]} d6 {[%emt 0:00:00]} 2. d4 {[%emt 0:00:00]} Nf6 {[%emt 0:00:00]} 3. Nc3 {[%emt 0:00:00]} e5 {[%emt 0:00:14]} 4. Nf3 {[%emt 0:00:26]} Nbd7 {[%emt 0:00:09]} 5. Bc4 {[%emt 0:00:19]} Be7 {[%emt 0:00:17]} 6. a4 {[%emt 0:00:28]} a5 {[%emt 0:07:12]} 7. O-O {[%emt 0:01:46]} O-O {[%emt 0:00:10]} 8. h3 {[%emt 0:01:25]} c6 {[%emt 0:04:11]} 9. Re1 {[%emt 0:01:34]} Qc7 {[%emt 0:04:49]} 10. Ba2 {[%emt 0:09:22]} b6 {[%emt 0:03:06]} 11. Nh4 {[%emt 0:02:01]} Bb7 {[%emt 0:10:17]} 12. Nf5 {[%emt 0:00:53]} Rfe8 {[%emt 0:03:24]} 13. Bg5 {[%emt 0:17:19]} Nf8 {[%emt 0:15:50]} 14. dxe5 {[%emt 0:10:48]} dxe5 {[%emt 0:01:08]} 15. Qf3 {[%emt 0:00:30]} N8d7 {[%emt 0:07:20]} 16. Rad1 {[%emt 0:11:26]} Rab8 {[%emt 0:24:35]} 17. Qg3 {[%emt 0:05:20]} Bf8 {[%emt 0:04:12]} 18. Nh6+ {[%emt 0:01:04]} Kh8 {[%emt 0:00:56]} 19. Nxf7+ {[%emt 0:00:12]} Kg8 {[%emt 0:00:03]} 20. Rxd7 {[%emt 0:07:43]} 1-0

[Event "FRA-chTW Top 12 2019"]
[Site "Vandoeuvre"]
[Date "2019.05.04"]
[Round "4.9"]
[White "Collas, Silvia"]
[Black "Shvayger, Yuliya"]
[Result "0-1"]
[ECO "D36"]
[WhiteElo "2279"]
[BlackElo "2373"]
[Annotator "NA RC"]
[PlyCount "84"]
[EventDate "2019.05.02"]
[EventType "team-tourn"]
[EventCountry "FRA"]
[SourceTitle "playchess.com"]
[Source "ChessBase"]
[SourceQuality "1"]
[TimeControl "40/5400+30:1800+30"]

1. Nf3 {[%emt 0:00:00]} d5 {[%emt 0:00:00]} 2. d4 {[%emt 0:00:00]} Nf6 {[%emt 0:00:45]} 3. c4 {[%emt 0:00:51]} e6 {[%emt 0:00:11]} 4. Nc3 {[%emt 0:00:28]} Nbd7 {[%emt 0:01:25]} 5. cxd5 {[%emt 0:05:43]} exd5 {[%emt 0:00:20]} 6. Bg5 {[%emt 0:00:08]} Be7 {[%emt 0:02:23]} 7. e3 {[%emt 0:00:34]} O-O {[%emt 0:01:45]} 8. Bd3 {[%emt 0:00:06]} c6 {[%emt 0:00:08]} 9. Qc2 {[%emt 0:00:16]} Re8 {[%emt 0:01:04]} 10. O-O {[%emt 0:00:52]} h6 {[%emt 0:03:07]} 11. Bxf6 {[%emt 0:02:43]} Nxf6 {[%emt 0:05:45]} 12. h3 {[%emt 0:08:13]} Bd6 {[%emt 0:00:24]} 13. a3 {[%emt 0:03:12]} a5 {[%emt 0:00:12]} 14. Rab1 {[%emt 0:06:25]} Qe7 {[%emt 0:05:11]} 15. Na4 {[%emt 0:02:53]} Ne4 {[%emt 0:15:21]} 16. Nb6 {[%emt 0:08:53]} Rb8 {[%emt 0:00:12]} 17. Nxc8 {[%emt 0:00:07]} Rbxc8 {[%emt 0:00:03]} 18. b4 {[%emt 0:15:21]} axb4 {[%emt 0:01:38]} 19. axb4 {[%emt 0:00:06]} b5 {[%emt 0:00:15]} 20. Bxe4 {[%emt 0:06:53]} dxe4 {[%emt 0:02:45]} 21. Nd2 {[%emt 0:00:05]} f5 {[%emt 0:01:41]} 22. Rfc1 {[%emt 0:00:08]} Kh7 {[%emt 0:08:53]} 23. Qc3 {[%emt 0:01:10]} Rc7 {[%emt 0:00:33]} 24. Rb3 {[%emt 0:05:42]} Ra8 {[%emt 0:01:16]} 25. f3 {[%emt 0:01:05]} exf3 {[%emt 0:04:09]} 26. Nxf3 {[%emt 0:00:07]} Ra4 {[%emt 0:01:16]} 27. Ne5 {[%emt 0:03:25]} Bxe5 {[%emt 0:03:50]} 28. dxe5 {[%emt 0:00:05]} c5 {[%emt 0:00:48]} 29. Rf1 {[%emt 0:14:35]} c4 {[%emt 0:02:51]} 30. Rb2 {[%emt 0:00:30]} Qe6 {[%emt 0:03:34]} 31. Rbf2 {[%emt 0:00:49]} Rd7 {[%emt 0:03:19]} 32. Rxf5 {[%emt 0:02:16]} Ra2 {[%emt 0:03:15]} 33. e4 {[%emt 0:04:02]} Rd3 {[%emt 0:04:42]} 34. Qe1 {[%emt 0:01:02]} Rxh3 {[%emt 0:02:37]} 35. R1f2 {[%emt 0:03:43]} Rha3 {[%emt 0:00:46]} 36. Rxa2 {[%emt 0:00:00]} Rxa2 {[%emt 0:00:03]} 37. Qe3 {[%emt 0:02:00]} Ra1+ {[%emt 0:11:24]} 38. Kf2 {[%emt 0:01:12]} Qe7 {[%emt 0:02:00]} 39. Qf4 {[%emt 0:03:17]} Qxb4 {[%emt 0:01:43]} 40. Kg3 {[%emt 0:00:29]} Qe1+ {[%emt 0:00:51]} 41. Kg4 {[%emt 0:30:15]} Ra2 {[%emt 0:31:11]} 42. Qf3 {[%emt 0:00:14]} Re2 {[%emt 0:02:03]} 0-1

[Event "FRA-chTW Top 12 2019"]
[Site "Vandoeuvre"]
[Date "2019.05.04"]
[Round "4.10"]
[White "Le Du, Maelle"]
[Black "Cramling, Pia"]
[Result "0-1"]
[ECO "A48"]
[WhiteElo "1673"]
[BlackElo "2454"]
[Annotator "ChessBase"]
[PlyCount "84"]
[EventDate "2019.05.02"]
[EventType "team-tourn"]
[EventCountry "FRA"]
[SourceTitle "playchess.com"]
[Source "ChessBase"]
[SourceQuality "1"]
[TimeControl "40/5400+30:1800+30"]

1. d4 {[%emt 0:00:00]} Nf6 {[%emt 0:00:00]} 2. Nf3 {[%emt 0:00:00]} b6 {[%emt 0:00:00]} 3. e3 {[%emt 0:01:23]} Bb7 {[%emt 0:00:17]} 4. b3 {[%emt 0:01:44]} g6 {[%emt 0:05:50]} 5. Bb2 {[%emt 1:29:23]} Bg7 {[%emt 0:00:07]} 6. Bd3 {[%emt 0:00:00]} O-O {[%emt 0:02:42]} 7. O-O {[%emt 0:00:00]} c5 {[%emt 0:05:02]} 8. Nbd2 {[%emt 0:00:00]} Nc6 {[%emt 0:03:48]} 9. c3 {[%emt 0:00:00]} d6 {[%emt 0:05:42]} 10. Rc1 {[%emt 0:00:00]} cxd4 {[%emt 0:07:20]} 11. cxd4 {[%emt 0:00:00]} Nb4 {[%emt 0:05:25]} 12. Bb1 {[%emt 0:00:00]} Ba6 {[%emt 0:01:46]} 13. Re1 {[%emt 0:00:00]} Nd3 {[%emt 0:06:08]} 14. Bxd3 {[%emt 0:00:00]} Bxd3 {[%emt 0:00:03]} 15. Nc4 {[%emt 0:00:00]} Be4 {[%emt 0:00:59]} 16. Qe2 {[%emt 0:00:00]} Bb7 {[%emt 0:06:22]} 17. Ncd2 {[%emt 0:00:00]} Qd7 {[%emt 0:07:30]} 18. e4 {[%emt 0:00:00]} Rac8 {[%emt 0:04:38]} 19. d5 {[%emt 0:00:00]} Nxd5 {[%emt 0:12:45]} 20. Bxg7 {[%emt 0:00:00]} Nf4 {[%emt 0:00:07]} 21. Qe3 {[%emt 0:00:37]} Qg4 {[%emt 0:00:22]} 22. g3 {[%emt 0:01:20]} Nh3+ {[%emt 0:00:07]} 23. Kg2 {[%emt 0:00:58]} Kxg7 {[%emt 0:00:11]} 24. Ng1 {[%emt 0:03:13]} Nxg1 {[%emt 0:01:11]} 25. Kxg1 {[%emt 0:00:09]} Qd7 {[%emt 0:01:14]} 26. Nf3 {[%emt 0:01:44]} Rc5 {[%emt 0:06:52]} 27. Rxc5 {[%emt 0:00:54]} dxc5 {[%emt 0:00:44]} 28. Ne5 {[%emt 0:00:34]} Qe6 {[%emt 0:00:53]} 29. f4 {[%emt 0:00:59]} Rd8 {[%emt 0:01:03]} 30. Nc4 {[%emt 0:00:38]} Qd7 {[%emt 0:00:28]} 31. Kf2 {[%emt 0:00:31]} Qh3 {[%emt 0:01:43]} 32. Kg1 {[%emt 0:00:17]} Rd4 {[%emt 0:00:19]} 33. Nd2 {[%emt 0:00:54]} Qd7 {[%emt 0:00:44]} 34. Re2 {[%emt 0:00:24]} Ba6 {[%emt 0:01:42]} 35. Rf2 {[%emt 0:00:12]} Rd3 {[%emt 0:00:22]} 36. Qe1 {[%emt 0:00:09]} Qd4 {[%emt 0:00:39]} 37. Kg2 {[%emt 0:00:38]} Re3 {[%emt 0:01:29]} 38. Qc1 {[%emt 0:00:59]} Bb7 {[%emt 0:00:39]} 39. Qc2 {[%emt 0:00:51]} Rxe4 {[%emt 0:01:12]} 40. Kf1 {[%emt 0:00:25]} Re3 {[%emt 0:01:35]} 41. Nc4 {[%emt 0:30:24]} Qa1+ {[%emt 0:30:12]} 42. Qd1 {[%emt 0:00:27]} Qxd1# {[%emt 0:00:03]} 0-1